bitfinex/quotes_BTCUSD_20220213
["timestamp","ask_amount","ask_price","bid_price","bid_amount"]
[1644776251840,0.118107,42356.0,42352.0,0.00021226]
[1644776252043,0.118107,42356.0,42352.0,0.00042752]
[1644776252240,0.118107,42356.0,42352.0,0.00063978]
[1644776252641,0.059055,42355.0,42352.0,0.00063978]
[1644776252842,0.059055,42354.0,42352.0,0.00063978]
[1644776253087,0.059055,42354.0,42351.0,0.01063978]
[1644776253287,0.25357493,42354.0,42351.0,0.01042752]
[1644776253888,0.059057,42353.0,42351.0,0.01042752]
[1644776254086,0.059057,42353.0,42351.0,0.01]
[1644776254087,0.059058,42352.0,42351.0,0.01]
[1644776256290,0.34299605,42352.0,42351.0,0.01]
[1644776257149,0.67553505,42352.0,42351.0,0.01]
[1644776257550,0.34299605,42352.0,42351.0,0.01]
[1644776258049,0.67553505,42352.0,42351.0,0.01]
[1644776258451,0.67553505,42352.0,42350.0,0.00021226]
[1644776258452,0.25,42351.0,42350.0,0.00021226]
[1644776258653,0.332539,42351.0,42349.0,0.00042753]
[1644776258852,0.332539,42350.0,42349.0,0.00042753]
[1644776259052,0.059063,42350.0,42343.0,0.00021226]
[1644776259251,0.059063,42350.0,42348.0,0.00042754]
[1644776259951,0.118125,42350.0,42348.0,0.00042754]
[1644776260153,0.059062,42349.0,42343.0,0.00021226]
[1644776260487,0.059062,42348.0,42347.0,0.00042755]
[1644776261295,0.059062,42348.0,42343.0,0.00021226]
[1644776261491,0.059062,42348.0,42345.0,0.00039778]
[1644776262291,0.118125,42348.0,42345.0,0.00039778]
[1644776262493,0.059064,42347.0,42345.0,0.00039778]
[1644776262694,0.059064,42347.0,42344.0,0.00039779]
[1644776263295,0.059064,42347.0,42342.0,0.02561005]
[1644776263497,0.19451993,42354.0,42343.0,0.287658]
[1644776263701,0.19451993,42354.0,42342.0,0.08466505]
[1644776263901,0.29451993,42354.0,42342.0,0.08466505]
[1644776265143,0.29451993,42354.0,42342.0,0.14372005]
[1644776265342,0.059055,42352.0,42343.0,0.059054]
[1644776265544,0.059055,42352.0,42344.0,0.2713813]
[1644776266146,0.39451993,42354.0,42347.0,0.23100875]
[1644776266346,0.45357193,42354.0,42347.0,0.23100875]
[1644776266548,0.259052,42354.0,42347.0,0.23100875]
[1644776266945,0.159052,42354.0,42347.0,0.4872672]
[1644776267445,0.159052,42354.0,42347.0,0.5463172]
[1644776267647,0.059052,42354.0,42347.0,0.5463172]
[1644776267996,0.1142,42359.0,42348.0,0.0473]
[1644776268596,0.3062592,42360.0,42350.0,0.109045]
[1644776268797,0.3062592,42360.0,42351.0,0.3]
[1644776268798,0.059048,42359.0,42351.0,0.3]
[1644776268998,0.059048,42357.0,42351.0,0.3]
[1644776269202,0.059048,42357.0,42354.0,0.21220342]
[1644776270398,0.059048,42357.0,42354.0,0.25950342]
[1644776270998,0.059048,42357.0,42354.0,0.0473]
[1644776272943,0.11809,42363.0,42354.0,0.0473]
[1644776273145,0.11809,42363.0,42354.0,0.04589]
[1644776273444,0.22058183,42361.0,42354.0,0.04589]
[1644776273842,0.059047,42360.0,42354.0,0.04589]
[1644776274046,0.059047,42357.0,42354.0,0.04589]
[1644776274842,0.059047,42357.0,42354.0,0.04610282]
[1644776275245,0.059045,42359.0,42355.0,0.287569]
[1644776275488,0.059045,42359.0,42356.0,0.26147867]
[1644776275688,0.059045,42359.0,42356.0,0.26169149]
[1644776275888,0.059045,42359.0,42356.0,0.26147867]
[1644776277790,0.235196,42364.0,42360.0,0.236178]
[1644776277989,0.332539,42362.0,42360.0,0.236178]
[1644776278793,0.118096,42361.0,42360.0,0.236178]
[1644776278992,0.450635,42361.0,42360.0,0.236178]
[1644776281343,0.118098,42363.0,42360.0,0.49811469]
[1644776281344,0.059044,42363.0,42360.0,0.49811469]
[1644776281546,0.059047,42362.0,42360.0,0.49811469]
[1644776281744,0.059047,42362.0,42361.0,0.5891373]
[1644776281943,0.054047,42362.0,42361.0,0.5891373]
[1644776282151,0.00036713,42365.0,42361.0,0.5891373]
[1644776282446,0.05940413,42365.0,42361.0,0.3016203]
[1644776283091,0.059037,42365.0,42361.0,0.3016203]
[1644776283291,0.05940413,42365.0,42361.0,0.3016203]
[1644776284192,0.059042,42364.0,42361.0,0.3016203]
[1644776284391,0.059041,42363.0,42361.0,0.3016203]
[1644776285594,0.059041,42363.0,42359.0,0.00021282]
[1644776285595,1.0,42361.0,42359.0,0.00021282]
[1644776285796,0.391593,42360.0,42357.0,0.00021282]
[1644776285995,0.64880476,42360.0,42349.0,0.19959181]
[1644776286195,0.332539,42358.0,42348.0,0.00021282]
[1644776286394,0.332539,42357.0,42347.0,0.36241282]
[1644776286594,0.24960255,42355.0,42347.0,0.08363344]
[1644776286844,0.24960255,42355.0,42347.0,0.00021282]
[1644776286845,0.059056,42353.0,42347.0,0.00021282]
[1644776287145,0.059056,42353.0,42345.0,0.00021282]
[1644776287346,0.059056,42353.0,42344.0,0.05926882]
[1644776288144,0.118111,42353.0,42344.0,0.05926882]
[1644776288344,0.059054,42351.0,42344.0,0.05926882]
[1644776288544,0.059054,42351.0,42344.0,0.00021282]
[1644776288744,0.059054,42351.0,42343.0,0.24585938]
[1644776288944,0.059054,42351.0,42343.0,0.00021282]
[1644776289147,0.059054,42351.0,42342.0,0.22556823]
[1644776289446,0.059054,42351.0,42342.0,0.02618924]
[1644776289447,0.118112,42351.0,42342.0,0.02618924]
[1644776289646,0.059058,42349.0,42343.0,0.287661]
[1644776289849,0.059058,42349.0,42343.0,0.28787382]
[1644776290047,0.059058,42349.0,42343.0,0.5275273]
[1644776290692,0.059058,42349.0,42344.0,0.287655]
[1644776290892,0.059058,42351.0,42344.0,0.34692182]
[1644776290893,0.059054,42351.0,42344.0,0.34692182]
[1644776291090,0.059054,42351.0,42344.0,0.05926682]
[1644776291293,0.059054,42351.0,42346.0,0.287638]
[1644776291491,0.40874566,42356.0,42345.0,0.00021282]
[1644776291690,0.40874566,42356.0,42344.0,0.19959181]
[1644776291890,0.24794465,42356.0,42344.0,0.19937899]
[1644776292089,0.24294465,42356.0,42344.0,0.19959181]
[1644776292493,0.059051,42353.0,42345.0,0.287645]
[1644776292690,0.059051,42353.0,42345.0,0.00021282]
[1644776292889,0.059051,42353.0,42344.0,0.19959181]
[1644776293090,0.059051,42353.0,42344.0,0.00021282]
[1644776293291,0.059051,42353.0,42343.0,0.66691646]
[1644776293692,0.059057,42352.0,42343.0,0.60786046]
[1644776293893,0.059057,42352.0,42344.0,0.287652]
[1644776294094,0.059059,42350.0,42345.0,0.287646]
[1644776294355,0.059059,42350.0,42345.0,0.28785882]
[1644776294554,0.059059,42350.0,42345.0,0.287646]
[1644776295753,0.059059,42350.0,42345.0,0.282646]
[1644776296153,0.059059,42349.0,42345.0,0.282646]
[1644776296355,0.059059,42348.0,42345.0,0.282646]
[1644776301494,0.118121,42348.0,42344.0,0.00021282]
[1644776301750,0.059059,42348.0,42345.0,0.282646]
[1644776301942,0.059059,42348.0,42344.0,0.00021282]
[1644776302144,0.059059,42348.0,42343.0,0.30826865]
[1644776302145,0.059059,42348.0,42343.0,0.00021282]
[1644776302344,0.059059,42348.0,42342.0,0.02618921]
[1644776302544,0.059059,42348.0,42343.0,0.28266]
[1644776302847,0.059071,42346.0,42343.0,0.00021282]
[1644776303049,0.27420094,42345.0,42342.0,0.02618921]
[1644776303243,0.22774448,42349.0,42342.0,0.02618921]
[1644776303244,0.118141,42347.0,42342.0,0.02618921]
[1644776303445,0.118141,42347.0,42342.0,0.02582287]
[1644776304045,0.059068,42344.0,42343.0,0.282661]
[1644776304245,0.059068,42344.0,42343.0,0.00021282]
[1644776304444,0.059068,42344.0,42342.0,0.02561005]
[1644776304445,0.059068,42344.0,42342.0,0.02582287]
[1644776304647,0.059068,42344.0,42342.0,0.02561005]
[1644776304846,0.27421937,42343.0,42342.0,0.02561005]
[1644776305045,0.118136,42344.0,42342.0,0.02561005]
[1644776305247,0.27684449,42343.0,42342.0,0.02561005]
[1644776306694,0.40150041,42344.0,42342.0,0.02561005]
[1644776306893,0.39636318,42344.0,42342.0,0.02561005]
[1644776307294,0.118136,42344.0,42342.0,0.02561005]
[1644776307895,0.2943811,42347.0,42346.0,0.29989131]
[1644776308092,0.6269311,42347.0,42346.0,0.29989131]
[1644776308494,0.6860031,42347.0,42346.0,0.29989131]
[1644776308893,0.84680411,42347.0,42346.0,0.29989131]
[1644776309745,0.391622,42347.0,42346.0,0.29989131]
[1644776310546,0.67858806,42347.0,42346.0,0.29989131]
[1644776310953,0.391622,42347.0,42346.0,0.29989131]
[1644776311248,0.67787163,42347.0,42346.0,0.29989131]
[1644776313090,0.391622,42347.0,42346.0,0.29989131]
[1644776313290,0.67897005,42347.0,42346.0,0.29989131]
[1644776318945,0.391622,42347.0,42346.0,0.29989131]
[1644776319445,0.66849717,42347.0,42346.0,0.29989131]
[1644776321097,0.391622,42347.0,42346.0,0.29989131]
[1644776323802,0.56011928,42347.0,42346.0,0.29989131]
[1644776323998,0.391622,42347.0,42346.0,0.29989131]
[1644776325344,0.55708154,42347.0,42346.0,0.29989131]
[1644776326746,0.391622,42347.0,42346.0,0.29989131]
[1644776328494,0.391622,42347.0,42346.0,0.29489131]
[1644776334446,0.059072,42347.0,42346.0,0.29489131]
[1644776337902,0.177201,42348.0,42347.0,0.11814399]
[1644776338103,0.559751,42348.0,42347.0,0.11814399]
[1644776339003,0.72055201,42348.0,42347.0,0.11814399]
[1644776339250,0.559751,42348.0,42347.0,0.11814399]
[1644776340250,0.509751,42348.0,42347.0,0.11814399]
[1644776340451,0.450684,42348.0,42347.0,0.11814399]
[1644776343098,0.118134,42348.0,42347.0,0.11814399]
[1644776343699,0.118132,42349.0,42347.0,0.11814399]
[1644776343900,0.118132,42349.0,42347.0,0.19687296]
[1644776344899,0.33255,42348.0,42347.0,0.19687296]
[1644776345501,0.177198,42349.0,42347.0,0.19687296]
[1644776345901,0.118132,42349.0,42347.0,0.19687296]
[1644776348152,0.11812,42353.0,42348.0,0.54160805]
[1644776348353,0.16080101,42361.0,42348.0,0.58890805]
[1644776348750,0.18387011,42364.0,42348.0,0.58890805]
[1644776348951,0.18387011,42364.0,42348.0,0.30628405]
[1644776349254,0.24601939,42357.0,42348.0,0.30628405]
[1644776349453,0.118119,42356.0,42348.0,0.0473]
[1644776350251,0.05906,42355.0,42347.0,0.11814399]
[1644776350497,0.059059,42353.0,42347.0,0.11814399]
[1644776350999,0.059059,42353.0,42347.0,0.37437376]
[1644776351199,0.059059,42353.0,42347.0,0.11814399]
[1644776351398,0.059059,42353.0,42350.0,0.06816097]
[1644776351599,0.059059,42352.0,42350.0,0.06816097]
[1644776351799,0.059063,42351.0,42350.0,0.06816097]
[1644776353002,0.059063,42351.0,42347.0,0.11814399]
[1644776353301,0.059064,42350.0,42347.0,0.11814399]
[1644776354103,0.059064,42350.0,42348.0,0.0785425]
[1644776355245,0.059064,42349.0,42347.0,0.11814399]
[1644776355446,0.059065,42348.0,42347.0,0.11814399]
[1644776356246,0.009456,42358.0,42347.0,0.19553532]
[1644776356449,0.118119,42356.0,42347.0,0.19553532]
[1644776356647,0.059058,42351.0,42348.0,0.282618]
[1644776356847,0.059058,42351.0,42347.0,0.4523266]
[1644776357046,0.059058,42351.0,42347.0,0.19553532]
[1644776357246,0.059058,42351.0,42347.0,0.41483528]
[1644776357652,0.059058,42351.0,42347.0,0.19553532]
[1644776357850,0.059058,42351.0,42347.0,0.45557479]
[1644776358095,0.059058,42351.0,42347.0,0.19553532]
[1644776358296,0.059065,42350.0,42347.0,0.19553532]
[1644776359902,0.059065,42350.0,42347.0,0.19544402]
[1644776360307,0.059062,42348.0,42347.0,0.19544402]
[1644776364646,0.059062,42348.0,42347.0,0.47807202]
[1644776364845,0.059062,42348.0,42347.0,0.19544402]
[1644776365899,0.05896925,42348.0,42347.0,0.19544402]
[1644776367901,0.11813,42351.0,42349.0,0.2360645]
[1644776368701,0.059063,42350.0,42349.0,0.2360645]
[1644776369647,0.059063,42350.0,42349.0,0.47477803]
[1644776370847,0.059057,42352.0,42349.0,0.738415]
[1644776371048,0.059057,42352.0,42349.0,0.47477803]
[1644776373698,0.118116,42352.0,42349.0,0.47477803]
[1644776373898,0.059061,42351.0,42349.0,0.47477803]
[1644776376845,0.059061,42351.0,42349.0,0.2360645]
[1644776379848,0.118127,42351.0,42349.0,0.2360645]
[1644776381297,0.059061,42351.0,42349.0,0.2360645]
[1644776382398,0.118125,42351.0,42349.0,0.2360645]
[1644776383799,0.059061,42351.0,42349.0,0.2360645]
[1644776387994,0.118126,42351.0,42349.0,0.2360645]
[1644776388197,0.118126,42351.0,42349.0,0.23595059]
[1644776390900,0.059061,42351.0,42349.0,0.23595059]
[1644776394353,0.0589996,42351.0,42349.0,0.23595059]
[1644776394755,0.1180646,42351.0,42349.0,0.23595059]
[1644776394955,0.0589996,42351.0,42349.0,0.23595059]
[1644776397399,0.1180636,42351.0,42349.0,0.23595059]
[1644776397900,0.0589996,42351.0,42349.0,0.23595059]
[1644776399102,0.1180636,42351.0,42349.0,0.23595059]
[1644776400753,0.0589996,42351.0,42349.0,0.23595059]
[1644776402155,0.0589996,42351.0,42350.0,0.26269377]
[1644776402456,0.0589996,42351.0,42350.0,0.62886958]
[1644776402654,0.0589996,42351.0,42350.0,0.34626358]
[1644776403500,0.0589996,42351.0,42350.0,0.08356981]
[1644776403702,0.059057,42353.0,42351.0,0.21224142]
[1644776403703,0.059054,42353.0,42351.0,0.21224142]
[1644776405600,0.118113,42353.0,42351.0,0.21224142]
[1644776406202,0.118113,42353.0,42350.0,0.08356981]
[1644776406401,0.118113,42353.0,42349.0,0.23595059]
[1644776407451,0.059066,42351.0,42349.0,0.23595059]
[1644776407651,0.118132,42351.0,42349.0,0.23595059]
[1644776409852,0.059066,42351.0,42349.0,0.23595059]
[1644776410904,0.11813,42351.0,42349.0,0.23595059]
[1644776411308,0.059066,42351.0,42349.0,0.23595059]
[1644776413510,0.059066,42351.0,42349.0,0.19595059]
[1644776420804,0.118129,42350.0,42349.0,0.19595059]
[1644776421608,0.500679,42350.0,42349.0,0.19595059]
[1644776421858,0.650679,42350.0,42349.0,0.19595059]
[1644776423559,0.500679,42350.0,42349.0,0.19595059]
[1644776423959,0.650679,42350.0,42349.0,0.19595059]
[1644776425603,0.660137,42350.0,42349.0,0.19595059]
[1644776426006,0.650679,42350.0,42349.0,0.19595059]
[1644776429556,0.660137,42350.0,42349.0,0.19595059]
[1644776429957,0.650679,42350.0,42349.0,0.19595059]
[1644776433409,0.660137,42350.0,42349.0,0.19595059]
[1644776433610,0.82093801,42350.0,42349.0,0.19595059]
[1644776433809,0.81148001,42350.0,42349.0,0.19595059]
[1644776435210,0.81148001,42350.0,42349.0,0.19586129]
[1644776435610,0.650679,42350.0,42349.0,0.19586129]
[1644776435814,0.81148001,42350.0,42349.0,0.19586129]
[1644776436011,0.650679,42350.0,42349.0,0.19586129]
[1644776436958,0.450679,42350.0,42349.0,0.19586129]
[1644776438362,3.18273388,42350.0,42349.0,0.19586129]
[1644776438559,2.85018388,42350.0,42349.0,0.19586129]
[1644776438761,3.194855,42350.0,42349.0,0.19586129]
[1644776439359,0.46280012,42350.0,42349.0,0.19586129]
[1644776439559,0.79535012,42350.0,42349.0,0.19586129]
[1644776439760,0.450679,42350.0,42349.0,0.19586129]
[1644776439960,0.61148001,42350.0,42349.0,0.19586129]
[1644776440161,0.450679,42350.0,42349.0,0.19586129]
[1644776443203,0.33255,42350.0,42349.0,0.19586129]
[1644776451606,0.38255,42350.0,42349.0,0.19586129]
[1644776454352,0.38255,42350.0,42343.0,0.00021282]
[1644776454353,0.059067,42349.0,42343.0,0.00021282]
[1644776454553,0.059067,42346.0,42342.0,0.02621211]
[1644776454752,0.059067,42346.0,42342.0,0.02582287]
[1644776454953,0.059067,42346.0,42342.0,0.0262121]
[1644776455903,0.059064,42344.0,42342.0,0.0262121]
[1644776456102,0.059064,42344.0,42342.0,0.02621209]
[1644776457203,0.059064,42344.0,42342.0,0.02582287]
[1644776458404,0.059064,42344.0,42342.0,0.02571346]
[1644776460055,0.118134,42347.0,42344.0,0.11812799]
[1644776460254,0.177198,42347.0,42344.0,0.11812799]
[1644776461359,0.059065,42345.0,42344.0,0.11812799]
[1644776469605,0.059061,42347.0,42344.0,0.11812799]
[1644776470001,0.059061,42347.0,42345.0,0.2556106]
[1644776470201,0.059061,42347.0,42345.0,0.25495042]
[1644776470402,0.059061,42347.0,42345.0,0.00021282]
[1644776470604,0.059061,42347.0,42345.0,0.25533439]
[1644776470802,0.059061,42347.0,42345.0,0.25776231]
[1644776471003,0.059061,42347.0,42345.0,0.00021282]
[1644776471203,0.059061,42347.0,42344.0,0.11812799]
[1644776472004,0.059065,42346.0,42344.0,0.11812799]
[1644776479503,0.118142,42345.0,42344.0,0.11812799]
[1644776480703,0.118142,42345.0,42344.0,0.11800832]
[1644776487709,0.059069,42346.0,42344.0,0.11800832]
[1644776489663,0.33255,42345.0,42344.0,0.11800832]
[1644776489860,0.059069,42346.0,42344.0,0.11800832]
[1644776490465,0.33255,42345.0,42344.0,0.11800832]
[1644776490665,0.450701,42345.0,42344.0,0.11800832]
[1644776491363,0.550701,42345.0,42344.0,0.11800832]
[1644776495206,0.55023892,42345.0,42344.0,0.11800832]
[1644776504263,0.65023892,42345.0,42344.0,0.11800832]
[1644776507769,0.65969592,42345.0,42344.0,0.11800832]
[1644776508411,0.65023892,42345.0,42344.0,0.11800832]
[1644776511872,0.65969692,42345.0,42344.0,0.11800832]
[1644776512272,0.65023892,42345.0,42344.0,0.11800832]
[1644776513271,0.64609928,42345.0,42344.0,0.11800832]
[1644776515913,0.65555728,42345.0,42344.0,0.11800832]
[1644776516213,0.64609928,42345.0,42344.0,0.11800832]
[1644776517216,0.45023892,42345.0,42344.0,0.11800832]
[1644776517414,0.118151,42345.0,42344.0,0.11800832]
[1644776519020,0.118151,42345.0,42344.0,0.11777132]
[1644776522372,0.450704,42345.0,42344.0,0.11777132]
[1644776522772,0.650704,42345.0,42344.0,0.11777132]
[1644776523410,0.61150501,42345.0,42344.0,0.11777132]
[1644776523611,0.450704,42345.0,42344.0,0.11777132]
[1644776525413,0.118151,42345.0,42344.0,0.11777132]
[1644776525814,0.450704,42345.0,42344.0,0.11777132]
[1644776526015,0.118151,42345.0,42344.0,0.11777132]
[1644776526214,0.450704,42345.0,42344.0,0.11777132]
[1644776527882,0.550704,42345.0,42344.0,0.11777132]
[1644776528083,0.650704,42345.0,42344.0,0.11777132]
[1644776531315,0.660162,42345.0,42344.0,0.11777132]
[1644776531714,0.650704,42345.0,42344.0,0.11777132]
[1644776533915,0.650704,42345.0,42344.0,0.11761532]
[1644776536668,0.550704,42345.0,42344.0,0.11761532]
[1644776536869,0.7278854,42345.0,42344.0,0.11761532]
[1644776537869,0.332553,42344.0,42343.0,0.00021282]
[1644776538112,0.059078,42343.0,42342.0,0.02614033]
[1644776538313,0.391631,42343.0,42342.0,0.02614033]
[1644776538915,0.391631,42343.0,42342.0,0.02571346]
[1644776539817,0.391461,42343.0,42342.0,0.02571346]
[1644776551170,0.372551,42343.0,42342.0,0.02571346]
[1644776551369,0.370971,42343.0,42342.0,0.02571346]
[1644776554322,0.65912889,42343.0,42342.0,0.02571346]
[1644776555121,0.92342462,42343.0,42342.0,0.02571346]
[1644776555520,1.08422563,42343.0,42342.0,0.02571346]
[1644776559875,1.0,42342.0,42341.0,0.01]
[1644776560182,1.391642,42341.0,42340.0,0.00038872]
[1644776560525,1.8804255,42341.0,42334.0,0.00021394]
[1644776560721,0.432553,42339.0,42338.0,0.00038873]
[1644776560925,0.579853,42339.0,42338.0,0.00038873]
[1644776561321,0.93895,42339.0,42338.0,0.00038873]
[1644776561521,0.97778013,42339.0,42338.0,0.00038873]
[1644776561723,0.79975101,42339.0,42332.0,0.00021394]
[1644776561921,0.79975101,42339.0,42331.0,0.01]
[1644776561922,0.43303235,42337.0,42331.0,0.01]
[1644776562122,0.0973,42336.0,42331.0,0.01]
[1644776562322,0.059098,42334.0,42331.0,0.01]
[1644776562522,0.5786771,42333.0,42331.0,0.01]
[1644776562721,0.17126352,42332.0,42331.0,0.01]
[1644776562922,0.50381652,42332.0,42331.0,0.01]
[1644776563322,0.50381652,42332.0,42331.0,0.01021394]
[1644776564124,0.66461753,42332.0,42331.0,0.01021394]
[1644776564369,0.66461753,42332.0,42331.0,0.01]
[1644776566969,0.66461753,42332.0,42331.0,0.01021394]
[1644776567169,0.66461753,42332.0,42331.0,0.01]
[1644776567570,0.059096,42328.0,42323.0,0.00154604]
[1644776567771,0.059096,42328.0,42320.0,0.015]
[1644776567772,0.27662093,42327.0,42320.0,0.015]
[1644776568016,0.059096,42327.0,42320.0,0.015]
[1644776568618,0.059096,42327.0,42322.0,0.26346941]
[1644776568821,0.00684544,42329.0,42327.0,0.177288]
[1644776570317,0.332553,42328.0,42327.0,0.177288]
[1644776570518,0.00684544,42329.0,42327.0,0.177288]
[1644776570718,0.332553,42328.0,42327.0,0.177288]
[1644776571121,0.391642,42328.0,42327.0,0.177288]
[1644776574572,0.72957309,42328.0,42327.0,0.177288]
[1644776574772,0.77957309,42328.0,42327.0,0.177288]
[1644776574971,0.94046973,42328.0,42327.0,0.177288]
[1644776575175,0.77957309,42328.0,42327.0,0.177288]
[1644776575372,0.94046973,42328.0,42327.0,0.177288]
[1644776576815,0.99046973,42328.0,42327.0,0.177288]
[1644776578417,1.03776973,42328.0,42327.0,0.177288]
[1644776580073,0.79983864,42328.0,42327.0,0.177288]
[1644776580478,0.638942,42328.0,42327.0,0.177288]
[1644776581576,0.638942,42328.0,42327.0,0.04716457]
[1644776581976,0.648405,42328.0,42327.0,0.04216457]
[1644776582176,0.98414935,42328.0,42327.0,0.04216457]
[1644776582377,0.97468635,42328.0,42327.0,0.04216457]
[1644776582578,1.13558299,42328.0,42327.0,0.04216457]
[1644776583415,1.13558299,42328.0,42322.0,0.00021297]
[1644776583416,0.450787,42326.0,42322.0,0.00021297]
[1644776583616,0.450787,42326.0,42321.0,0.01]
[1644776583617,0.332553,42324.0,42321.0,0.01]
[1644776583816,0.0473,42323.0,42321.0,0.01]
[1644776584016,0.61569051,42322.0,42321.0,0.01]
[1644776584218,0.76299051,42322.0,42321.0,0.01]
[1644776584421,0.92210451,42322.0,42321.0,0.01]
[1644776585116,1.08300115,42322.0,42321.0,0.01]
[1644776585918,0.059121,42320.0,42319.0,0.00042359]
[1644776586118,0.509916,42320.0,42319.0,0.00042359]
[1644776586317,0.81169164,42320.0,42319.0,0.00042359]
[1644776586978,0.81169164,42320.0,42314.0,0.00021297]
[1644776587175,0.65,42314.0,42312.0,0.00062828]
[1644776587476,0.43699056,42315.0,42312.0,0.0008413]
[1644776587874,0.27609392,42315.0,42312.0,0.0008413]
[1644776588676,0.059122,42313.0,42312.0,0.0008413]
[1644776590517,0.05816447,42313.0,42312.0,0.0008413]
[1644776591516,0.67812841,42313.0,42312.0,0.0008413]
[1644776592316,0.34557541,42313.0,42312.0,0.0008413]
[1644776592718,0.05816447,42313.0,42312.0,0.0008413]
[1644776597275,0.05816447,42313.0,42312.0,0.2842183]
[1644776597479,0.16094917,42317.0,42312.0,0.3342183]
[1644776597674,0.16094917,42325.0,42312.0,0.0508413]
[1644776597872,0.39693751,42327.0,42313.0,0.059101]
[1644776598145,0.39693751,42327.0,42313.0,0.26594254]
[1644776598146,0.58664018,42327.0,42313.0,0.26594254]
[1644776598446,0.059108,42322.0,42313.0,0.26594254]
[1644776598646,0.118206,42321.0,42313.0,0.26594254]
[1644776599144,0.118206,42321.0,42315.0,0.00042328]
[1644776599643,0.059108,42320.0,42315.0,0.00042328]
[1644776599943,0.05911,42318.0,42315.0,0.00042328]
[1644776600149,0.05911,42318.0,42313.0,0.00021302]
[1644776600345,0.05911,42318.0,42312.0,0.0008413]
[1644776600746,0.177335,42318.0,42312.0,0.0008413]
[1644776600943,0.177335,42318.0,42312.0,0.00062828]
[1644776601144,0.059111,42316.0,42312.0,0.00062828]
[1644776601345,0.059112,42318.0,42312.0,0.00062828]
[1644776601346,0.177336,42318.0,42316.0,0.11822199]
[1644776601544,0.118224,42318.0,42316.0,0.11822199]
[1644776602576,0.118222,42317.0,42316.0,0.11822199]
[1644776603175,0.118222,42317.0,42316.0,0.11843465]
[1644776603974,0.118222,42317.0,42316.0,0.11822199]
[1644776604575,0.05911,42317.0,42316.0,0.11822199]
[1644776605626,0.73461689,42317.0,42316.0,0.11822199]
[1644776605824,0.72552992,42317.0,42316.0,0.11822199]
[1644776606024,0.96006749,42317.0,42316.0,0.11822199]
[1644776606426,1.12101666,42317.0,42316.0,0.11822199]
[1644776607424,1.27101666,42317.0,42316.0,0.11822199]
[1644776608125,1.12101666,42317.0,42316.0,0.11822199]
[1644776608824,1.07601666,42317.0,42316.0,0.11843465]
[1644776609280,1.12601666,42317.0,42316.0,0.11822199]
[1644776610474,0.84214974,42317.0,42316.0,0.11822199]
[1644776610674,1.13049882,42317.0,42316.0,0.11822199]
[1644776610871,0.10911,42317.0,42316.0,0.11822199]
[1644776611072,0.60261217,42317.0,42316.0,0.11822199]
[1644776611273,0.72026748,42317.0,42316.0,0.11822199]
[1644776611471,0.38771448,42317.0,42316.0,0.11822199]
[1644776611672,0.72026748,42317.0,42316.0,0.11822199]
[1644776611871,0.64170883,42317.0,42316.0,0.11822199]
[1644776612074,1.135211,42317.0,42316.0,0.11822199]
[1644776612272,0.72026748,42317.0,42316.0,0.11822199]
[1644776612472,0.88121665,42317.0,42316.0,0.11822199]
[1644776613540,0.60261217,42317.0,42316.0,0.11822199]
[1644776613941,0.441663,42317.0,42316.0,0.11822199]
[1644776614140,0.60261217,42317.0,42316.0,0.11822199]
[1644776614938,0.27005917,42317.0,42316.0,0.11822199]
[1644776615140,0.60261217,42317.0,42316.0,0.11822199]
[1644776615339,0.10911,42317.0,42316.0,0.11822199]
[1644776615540,0.441663,42317.0,42316.0,0.11822199]
[1644776615747,0.10911,42317.0,42316.0,0.11822199]
[1644776615940,0.441663,42317.0,42316.0,0.11822199]
[1644776616140,0.10911,42317.0,42316.0,0.11822199]
[1644776616340,0.60261217,42317.0,42316.0,0.11822199]
[1644776616541,0.38563027,42317.0,42316.0,0.11822199]
[1644776616777,0.71818327,42317.0,42316.0,0.11822199]
[1644776617172,0.54657944,42317.0,42316.0,0.11822199]
[1644776617372,0.87913244,42317.0,42316.0,0.11822199]
[1644776617572,0.71818327,42317.0,42316.0,0.11822199]
[1644776617773,0.87913244,42317.0,42316.0,0.11822199]
[1644776618378,0.82913244,42317.0,42316.0,0.11822199]
[1644776618573,0.22005917,42317.0,42316.0,0.11822199]
[1644776618773,0.55261217,42317.0,42316.0,0.11822199]
[1644776618974,0.05911,42317.0,42316.0,0.11822199]
[1644776619176,0.391663,42317.0,42316.0,0.11822199]
[1644776620824,0.39103334,42317.0,42316.0,0.11822199]
[1644776621027,0.39103334,42317.0,42316.0,0.11843465]
[1644776621226,0.39103334,42317.0,42316.0,0.11822199]
[1644776622029,0.05848034,42317.0,42316.0,0.11822199]
[1644776622227,0.39103334,42317.0,42316.0,0.11822199]
[1644776622427,0.05848034,42317.0,42316.0,0.11822199]
[1644776622628,0.39103334,42317.0,42316.0,0.11822199]
[1644776622828,0.05848034,42317.0,42316.0,0.11822199]
[1644776624029,0.05848034,42317.0,42316.0,0.40156699]
[1644776624875,0.118209,42321.0,42316.0,0.40156699]
[1644776624876,0.059102,42319.0,42316.0,0.40156699]
[1644776625074,0.059102,42319.0,42317.0,0.283336]
[1644776625275,0.059102,42319.0,42317.0,0.00021266]
[1644776625475,0.059102,42319.0,42318.0,0.283329]
[1644776625675,0.059102,42319.0,42317.0,0.07990419]
[1644776625874,0.059102,42319.0,42318.0,0.283328]
[1644776626076,0.059102,42319.0,42318.0,0.00021266]
[1644776626278,0.059102,42319.0,42317.0,0.08011685]
[1644776626474,0.059102,42319.0,42318.0,0.283328]
[1644776626675,0.059102,42319.0,42318.0,0.00021266]
[1644776626875,0.059102,42319.0,42318.0,0.283328]
[1644776627180,0.30806976,42331.0,42318.0,0.68084066]
[1644776627181,0.16094917,42331.0,42318.0,0.68084066]
[1644776627383,0.16094917,42331.0,42324.0,0.05]
[1644776627578,0.1176,42337.0,42325.0,0.283269]
[1644776627778,0.059088,42336.0,42325.0,0.3]
[1644776628023,0.059088,42336.0,42324.0,0.0473]
[1644776628024,0.059086,42333.0,42324.0,0.0473]
[1644776628425,0.059086,42330.0,42324.0,0.0473]
[1644776629424,0.059096,42329.0,42325.0,0.25953761]
[1644776629625,0.059094,42328.0,42325.0,0.25738866]
[1644776630026,0.059094,42328.0,42324.0,0.0473]
[1644776630433,0.059094,42328.0,42324.0,0.04697277]
[1644776631528,0.059094,42328.0,42325.0,0.25992981]
[1644776631781,0.059094,42328.0,42325.0,0.25804324]
[1644776631972,0.059094,42328.0,42324.0,0.04739595]